[Event "Titled Tuesday Blitz April 12 Early 2022"]
[White "Manon, Reja Neer"]
[Black "Allahverdiyeva, Ayan"]
[WhiteFideId "10224009"]
[BlackFideId "13412590"]
[WhiteElo "1911"]
[BlackElo "1910"]
[Result "0-1"]
[Round "06"]
[TimeControl "180+1"]
[Date "2022.04.13"]
[WhiteClock "0:00:56"]
[BlackClock "0:00:09"]

1. e4 {[%clk 0:03:00]}  c5 {[%clk 0:02:57]} 2. Nf3 {[%clk 0:02:59]}  d6 {[%clk 0:02:57]} 3. d4 {[%clk 0:02:59]}  cxd4 {[%clk 0:02:57]} 4. Nxd4 {[%clk 0:03:00]}  Nf6 {[%clk 0:02:58]} 5. Nc3 {[%clk 0:03:00]}  e6 {[%clk 0:02:56]} 6. Be3 {[%clk 0:02:55]}  Ke7 {[%clk 0:02:56]} 7. Be2 {[%clk 0:02:47]}  Ke8 {[%clk 0:02:57]} 8. f4 {[%clk 0:02:47]}  Be7 {[%clk 0:02:57]} 9. g4 {[%clk 0:02:47]}  a6 {[%clk 0:02:57]} 10. g5 {[%clk 0:02:47]}  Nfd7 {[%clk 0:02:57]} 11. Qd2 {[%clk 0:02:46]}  Nc6 {[%clk 0:02:58]} 12. Nf3 {[%clk 0:02:39]}  b5 {[%clk 0:02:53]} 13. a3 {[%clk 0:02:38]}  Bb7 {[%clk 0:02:53]} 14. h4 {[%clk 0:02:39]}  Nb6 {[%clk 0:02:46]} 15. O-O-O {[%clk 0:02:35]}  Nc4 {[%clk 0:02:45]} 16. Bxc4 {[%clk 0:02:35]}  bxc4 {[%clk 0:02:45]} 17. Na4 {[%clk 0:02:28]}  Rb8 {[%clk 0:02:36]} 18. Nb6 {[%clk 0:02:28]}  Qc7 {[%clk 0:02:13]} 19. Nxc4 {[%clk 0:02:22]}  d5 {[%clk 0:02:00]} 20. exd5 {[%clk 0:02:18]}  exd5 {[%clk 0:02:00]} 21. Nb6 {[%clk 0:02:11]}  d4 {[%clk 0:01:59]} 22. Nd5 {[%clk 0:01:56]}  Qd8 {[%clk 0:01:31]} 23. Nxe7 {[%clk 0:01:48]}  dxe3 {[%clk 0:01:31]} 24. Qxe3 {[%clk 0:01:24]}  Qxe7 {[%clk 0:01:31]} 25. Qc3 {[%clk 0:01:19]}  Qc7 {[%clk 0:00:55]} 26. Qxg7 {[%clk 0:01:07]}  Qxf4+ {[%clk 0:00:35]} 27. Kb1 {[%clk 0:01:05]}  Rf8 {[%clk 0:00:26]} 28. Rhe1+ {[%clk 0:01:01]}  Ne7 {[%clk 0:00:26]} 29. Qf6 {[%clk 0:00:59]}  Qxf6 {[%clk 0:00:09]} 30. Re2 {[%clk 0:00:59]}  Qxf3 {[%clk 0:00:08]} 31. Rxe7+ {[%clk 0:00:58]}  Kxe7 {[%clk 0:00:08]} 32. Re1+ {[%clk 0:00:58]}  Be4 {[%clk 0:00:08]} 33. Rc1 {[%clk 0:00:57]}  Qe2 {[%clk 0:00:08]} 34. Ka2 {[%clk 0:00:57]}  Ke6 {[%clk 0:00:08]} 35. b3 {[%clk 0:00:56]}  Rfc8 {[%clk 0:00:08]} 36. Kb2 {[%clk 0:00:56]}  Rxc2+ {[%clk 0:00:09]} 37. Ka1 {[%clk 0:00:56]}  Ra2# {[%clk 0:00:09]} 0-1


[Site "https://www.chess.com"]

[Event "Titled Tuesday Blitz April 12 Early 2022"]
[White "Marcziter, Dmitrii"]
[Black "Yang, Kaiqi"]
[WhiteFideId "13900765"]
[BlackFideId "8604398"]
[WhiteElo "2155"]
[BlackElo "2373"]
[Result "1-0"]
[Round "06"]
[TimeControl "180+1"]
[Date "2022.04.13"]
[WhiteClock "0:00:17"]
[BlackClock "0:00:06"]

1. d4 {[%clk 0:03:00]}  e6 {[%clk 0:02:59]} 2. c4 {[%clk 0:02:59]}  f5 {[%clk 0:02:59]} 3. g3 {[%clk 0:02:57]}  Nf6 {[%clk 0:03:00]} 4. Bg2 {[%clk 0:02:57]}  d5 {[%clk 0:03:00]} 5. Nh3 {[%clk 0:02:54]}  c6 {[%clk 0:02:56]} 6. O-O {[%clk 0:02:53]}  Bd6 {[%clk 0:02:52]} 7. Bf4 {[%clk 0:02:52]}  Be7 {[%clk 0:02:52]} 8. Nd2 {[%clk 0:02:44]}  O-O {[%clk 0:02:47]} 9. Nf3 {[%clk 0:02:42]}  Ne4 {[%clk 0:02:42]} 10. Bxb8 {[%clk 0:02:35]}  Rxb8 {[%clk 0:02:41]} 11. Nf4 {[%clk 0:02:35]}  Bd6 {[%clk 0:02:32]} 12. Nd3 {[%clk 0:02:33]}  Bd7 {[%clk 0:02:13]} 13. Rc1 {[%clk 0:02:30]}  Be8 {[%clk 0:02:12]} 14. Nfe5 {[%clk 0:02:26]}  Bh5 {[%clk 0:01:58]} 15. Nf4 {[%clk 0:02:24]}  Bf7 {[%clk 0:01:41]} 16. e3 {[%clk 0:02:23]}  Bxe5 {[%clk 0:01:28]} 17. dxe5 {[%clk 0:02:22]}  Qb6 {[%clk 0:01:08]} 18. Qe2 {[%clk 0:02:14]}  Rfd8 {[%clk 0:01:02]} 19. Rfd1 {[%clk 0:02:12]}  Rbc8 {[%clk 0:00:57]} 20. f3 {[%clk 0:02:10]}  Nc5 {[%clk 0:00:56]} 21. h4 {[%clk 0:01:58]}  a5 {[%clk 0:00:48]} 22. b3 {[%clk 0:01:56]}  a4 {[%clk 0:00:46]} 23. Rb1 {[%clk 0:01:40]}  axb3 {[%clk 0:00:46]} 24. axb3 {[%clk 0:01:39]}  Qb4 {[%clk 0:00:43]} 25. Nd3 {[%clk 0:01:33]}  Nxd3 {[%clk 0:00:42]} 26. Qxd3 {[%clk 0:01:33]}  Ra8 {[%clk 0:00:33]} 27. Ra1 {[%clk 0:01:29]}  Bh5 {[%clk 0:00:31]} 28. cxd5 {[%clk 0:01:22]}  cxd5 {[%clk 0:00:30]} 29. Kf2 {[%clk 0:01:16]}  h6 {[%clk 0:00:29]} 30. Bh3 {[%clk 0:01:15]}  Rdc8 {[%clk 0:00:20]} 31. Rxa8 {[%clk 0:01:06]}  Rxa8 {[%clk 0:00:20]} 32. Rd2 {[%clk 0:01:05]}  Ra3 {[%clk 0:00:17]} 33. Rb2 {[%clk 0:01:04]}  Ra1 {[%clk 0:00:17]} 34. Qd2 {[%clk 0:01:02]}  Qxd2+ {[%clk 0:00:15]} 35. Rxd2 {[%clk 0:01:02]}  Rb1 {[%clk 0:00:15]} 36. Rd3 {[%clk 0:01:02]}  Rb2+ {[%clk 0:00:10]} 37. Kg1 {[%clk 0:01:00]}  b5 {[%clk 0:00:10]} 38. g4 {[%clk 0:00:59]}  fxg4 {[%clk 0:00:09]} 39. Bxg4 {[%clk 0:00:58]}  Bxg4 {[%clk 0:00:09]} 40. fxg4 {[%clk 0:00:58]}  b4 {[%clk 0:00:10]} 41. h5 {[%clk 0:00:56]}  Kf7 {[%clk 0:00:10]} 42. Kf1 {[%clk 0:00:45]}  g6 {[%clk 0:00:10]} 43. hxg6+ {[%clk 0:00:42]}  Kxg6 {[%clk 0:00:10]} 44. Ke1 {[%clk 0:00:42]}  Kg5 {[%clk 0:00:10]} 45. Rd4 {[%clk 0:00:41]}  Rxb3 {[%clk 0:00:10]} 46. Kd2 {[%clk 0:00:41]}  Rb1 {[%clk 0:00:08]} 47. Kc2 {[%clk 0:00:41]}  Rg1 {[%clk 0:00:07]} 48. Rxb4 {[%clk 0:00:40]}  Rxg4 {[%clk 0:00:07]} 49. Rb6 {[%clk 0:00:39]}  Kf5 {[%clk 0:00:08]} 50. Kd3 {[%clk 0:00:39]}  Kxe5 {[%clk 0:00:08]} 51. Rb8 {[%clk 0:00:39]}  h5 {[%clk 0:00:08]} 52. Rh8 {[%clk 0:00:38]}  h4 {[%clk 0:00:09]} 53. Rh5+ {[%clk 0:00:39]}  Kd6 {[%clk 0:00:09]} 54. Ke2 {[%clk 0:00:38]}  e5 {[%clk 0:00:08]} 55. Kf3 {[%clk 0:00:38]}  Re4 {[%clk 0:00:08]} 56. Rh8 {[%clk 0:00:35]}  Ra4 {[%clk 0:00:08]} 57. Rd8+ {[%clk 0:00:34]}  Kc5 {[%clk 0:00:08]} 58. Re8 {[%clk 0:00:33]}  Re4 {[%clk 0:00:07]} 59. Rc8+ {[%clk 0:00:32]}  Kb4 {[%clk 0:00:07]} 60. Rc6 {[%clk 0:00:32]}  Kb3 {[%clk 0:00:06]} 61. Rc5 {[%clk 0:00:31]}  h3 {[%clk 0:00:04]} 62. Rxd5 {[%clk 0:00:30]}  Rh4 {[%clk 0:00:02]} 63. Kg3 {[%clk 0:00:24]}  h2 {[%clk 0:00:02]} 64. Kxh4 {[%clk 0:00:21]}  h1=Q+ {[%clk 0:00:02]} 65. Kg5 {[%clk 0:00:15]}  Qxd5 {[%clk 0:00:03]} 66. Kf5 {[%clk 0:00:15]}  Kc3 {[%clk 0:00:04]} 67. e4 {[%clk 0:00:14]}  Kd3 {[%clk 0:00:04]} 68. exd5 {[%clk 0:00:15]}  e4 {[%clk 0:00:03]} 69. d6 {[%clk 0:00:15]}  e3 {[%clk 0:00:04]} 70. d7 {[%clk 0:00:15]}  e2 {[%clk 0:00:04]} 71. d8=Q+ {[%clk 0:00:16]}  Ke3 {[%clk 0:00:05]} 72. Qe7+ {[%clk 0:00:16]}  Kf2 {[%clk 0:00:05]} 73. Qc5+ {[%clk 0:00:16]}  Kf3 {[%clk 0:00:04]} 74. Qd5+ {[%clk 0:00:16]}  Kf2 {[%clk 0:00:04]} 75. Qd4+ {[%clk 0:00:16]}  Kf3 {[%clk 0:00:04]} 76. Qe4+ {[%clk 0:00:16]}  Kf2 {[%clk 0:00:05]} 77. Qf4+ {[%clk 0:00:16]}  Kg2 {[%clk 0:00:05]} 78. Qe3 {[%clk 0:00:16]}  Kf1 {[%clk 0:00:05]} 79. Qf3+ {[%clk 0:00:16]}  Ke1 {[%clk 0:00:05]} 80. Ke4 {[%clk 0:00:17]}  Kd2 {[%clk 0:00:06]} 81. Qd3+ {[%clk 0:00:16]}  Ke1 {[%clk 0:00:06]} 82. Kf3 {[%clk 0:00:16]}  Kf1 {[%clk 0:00:06]} 83. Qxe2+ {[%clk 0:00:17]}  Kg1 {[%clk 0:00:06]} 84. Qg2# {[%clk 0:00:17]} 1-0


[Site "https://www.chess.com"]

[Event "Titled Tuesday Blitz April 12 Early 2022"]
[White "Martic, Ivan"]
[Black "Xu, Yi"]
[WhiteFideId "929301"]
[BlackFideId "8605564"]
[WhiteElo "2317"]
[BlackElo "2471"]
[Result "0-1"]
[Round "06"]
[TimeControl "180+1"]
[Date "2022.04.13"]
[WhiteClock "0:00:04"]
[BlackClock "0:00:05"]

1. d4 {[%clk 0:03:00]}  Nf6 {[%clk 0:02:59]} 2. Nf3 {[%clk 0:02:59]}  d5 {[%clk 0:02:59]} 3. c4 {[%clk 0:02:59]}  e6 {[%clk 0:02:59]} 4. Nc3 {[%clk 0:02:58]}  Bb4 {[%clk 0:02:59]} 5. Qa4+ {[%clk 0:02:55]}  Nc6 {[%clk 0:02:59]} 6. cxd5 {[%clk 0:02:54]}  exd5 {[%clk 0:02:58]} 7. Bg5 {[%clk 0:02:53]}  h6 {[%clk 0:02:59]} 8. Bxf6 {[%clk 0:02:53]}  Qxf6 {[%clk 0:02:59]} 9. e3 {[%clk 0:02:53]}  O-O {[%clk 0:02:59]} 10. Be2 {[%clk 0:02:53]}  Be6 {[%clk 0:02:49]} 11. a3 {[%clk 0:02:49]}  Be7 {[%clk 0:02:34]} 12. O-O {[%clk 0:02:25]}  a6 {[%clk 0:02:30]} 13. b4 {[%clk 0:02:22]}  Rfd8 {[%clk 0:02:17]} 14. Rfc1 {[%clk 0:02:14]}  Bf8 {[%clk 0:02:17]} 15. Qd1 {[%clk 0:02:07]}  Qg6 {[%clk 0:02:07]} 16. Na4 {[%clk 0:02:03]}  Bc8 {[%clk 0:01:54]} 17. Nc5 {[%clk 0:01:53]}  Ne7 {[%clk 0:01:49]} 18. Ne5 {[%clk 0:01:45]}  Qf6 {[%clk 0:01:47]} 19. Bh5 {[%clk 0:01:39]}  g6 {[%clk 0:01:46]} 20. Bg4 {[%clk 0:01:39]}  Nf5 {[%clk 0:01:40]} 21. Qf3 {[%clk 0:01:35]}  h5 {[%clk 0:01:37]} 22. Bh3 {[%clk 0:01:24]}  Bg7 {[%clk 0:01:22]} 23. a4 {[%clk 0:01:16]}  Nd6 {[%clk 0:01:17]} 24. Qxf6 {[%clk 0:01:11]}  Bxf6 {[%clk 0:01:16]} 25. Bxc8 {[%clk 0:01:09]}  Raxc8 {[%clk 0:01:15]} 26. Ned3 {[%clk 0:01:01]}  c6 {[%clk 0:01:05]} 27. Rab1 {[%clk 0:00:59]}  Rc7 {[%clk 0:01:05]} 28. Nb2 {[%clk 0:00:46]}  Ra8 {[%clk 0:01:04]} 29. a5 {[%clk 0:00:42]}  Re7 {[%clk 0:01:04]} 30. Re1 {[%clk 0:00:37]}  h4 {[%clk 0:01:02]} 31. h3 {[%clk 0:00:37]}  Bg7 {[%clk 0:00:59]} 32. Kf1 {[%clk 0:00:37]}  f5 {[%clk 0:00:59]} 33. Ncd3 {[%clk 0:00:36]}  Rae8 {[%clk 0:00:59]} 34. Rbc1 {[%clk 0:00:35]}  Bf6 {[%clk 0:00:58]} 35. Ke2 {[%clk 0:00:31]}  Bxd4 {[%clk 0:00:57]} 36. Kd1 {[%clk 0:00:29]}  Bf6 {[%clk 0:00:56]} 37. Kc2 {[%clk 0:00:26]}  Kf7 {[%clk 0:00:55]} 38. Kb3 {[%clk 0:00:26]}  g5 {[%clk 0:00:54]} 39. Red1 {[%clk 0:00:24]}  Ne4 {[%clk 0:00:50]} 40. Rc2 {[%clk 0:00:23]}  Rd8 {[%clk 0:00:41]} 41. Na4 {[%clk 0:00:23]}  d4 {[%clk 0:00:37]} 42. Ndc5 {[%clk 0:00:19]}  Rc7 {[%clk 0:00:20]} 43. exd4 {[%clk 0:00:18]}  Rxd4 {[%clk 0:00:18]} 44. Rxd4 {[%clk 0:00:17]}  Bxd4 {[%clk 0:00:19]} 45. f3 {[%clk 0:00:17]}  Nxc5+ {[%clk 0:00:18]} 46. bxc5 {[%clk 0:00:17]}  Re7 {[%clk 0:00:17]} 47. Kc4 {[%clk 0:00:16]}  Bf6 {[%clk 0:00:16]} 48. Rd2 {[%clk 0:00:15]}  Be5 {[%clk 0:00:13]} 49. Nb6 {[%clk 0:00:15]}  Bc7 {[%clk 0:00:13]} 50. Rd3 {[%clk 0:00:11]}  Bxb6 {[%clk 0:00:14]} 51. cxb6 {[%clk 0:00:11]}  Ke6 {[%clk 0:00:14]} 52. Kc5 {[%clk 0:00:11]}  Rd7 {[%clk 0:00:13]} 53. Re3+ {[%clk 0:00:11]}  Kf7 {[%clk 0:00:13]} 54. Re5 {[%clk 0:00:12]}  Kf6 {[%clk 0:00:13]} 55. Re8 {[%clk 0:00:12]}  Rd5+ {[%clk 0:00:13]} 56. Kc4 {[%clk 0:00:12]}  Rxa5 {[%clk 0:00:11]} 57. Rb8 {[%clk 0:00:12]}  Ke6 {[%clk 0:00:11]} 58. Rxb7 {[%clk 0:00:12]}  Rb5 {[%clk 0:00:11]} 59. Rg7 {[%clk 0:00:10]}  Rxb6 {[%clk 0:00:08]} 60. Rxg5 {[%clk 0:00:10]}  Rb2 {[%clk 0:00:08]} 61. Rg6+ {[%clk 0:00:09]}  Ke5 {[%clk 0:00:07]} 62. Kc5 {[%clk 0:00:09]}  Kf4 {[%clk 0:00:07]} 63. Kxc6 {[%clk 0:00:07]}  a5 {[%clk 0:00:08]} 64. Kc5 {[%clk 0:00:07]}  a4 {[%clk 0:00:08]} 65. Ra6 {[%clk 0:00:07]}  Ra2 {[%clk 0:00:07]} 66. Kd5 {[%clk 0:00:06]}  a3 {[%clk 0:00:06]} 67. Ke6 {[%clk 0:00:07]}  Kg3 {[%clk 0:00:06]} 68. Kxf5 {[%clk 0:00:07]}  Kxg2 {[%clk 0:00:07]} 69. Kg4 {[%clk 0:00:06]}  Rb2 {[%clk 0:00:06]} 70. Rxa3 {[%clk 0:00:06]}  Rb4+ {[%clk 0:00:06]} 71. f4 {[%clk 0:00:06]}  Rc4 {[%clk 0:00:06]} 72. Ra2+ {[%clk 0:00:06]}  Kg1 {[%clk 0:00:07]} 73. Ra3 {[%clk 0:00:05]}  Kf2 {[%clk 0:00:07]} 74. Rf3+ {[%clk 0:00:05]}  Ke2 {[%clk 0:00:07]} 75. Ra3 {[%clk 0:00:03]}  Rd4 {[%clk 0:00:08]} 76. Ra6 {[%clk 0:00:02]}  Ke3 {[%clk 0:00:07]} 77. Re6+ {[%clk 0:00:02]}  Kd3 {[%clk 0:00:08]} 78. Rf6 {[%clk 0:00:03]}  Ke4 {[%clk 0:00:07]} 79. Re6+ {[%clk 0:00:02]}  Kd5 {[%clk 0:00:07]} 80. Re5+ {[%clk 0:00:03]}  Kd6 {[%clk 0:00:08]} 81. Kg5 {[%clk 0:00:03]}  Ra4 {[%clk 0:00:05]} 82. Re1 {[%clk 0:00:03]}  Kd7 {[%clk 0:00:04]} 83. Rf1 {[%clk 0:00:03]}  Ke7 {[%clk 0:00:04]} 84. Kxh4 {[%clk 0:00:04]}  Kf6 {[%clk 0:00:04]} 85. Kg4 {[%clk 0:00:04]}  Kg6 {[%clk 0:00:05]} 86. h4 {[%clk 0:00:04]}  Ra2 {[%clk 0:00:04]} 87. h5+ {[%clk 0:00:04]}  Kh6 {[%clk 0:00:05]} 88. Rf3 {[%clk 0:00:04]}  Rg2+ {[%clk 0:00:05]} 89. Kh3 {[%clk 0:00:04]}  Rg8 {[%clk 0:00:05]} 90. Kh4 {[%clk 0:00:05]}  Rg1 {[%clk 0:00:05]} 91. Ra3 {[%clk 0:00:04]}  Rh1+ {[%clk 0:00:06]} 92. Kg4 {[%clk 0:00:04]}  Rg1+ {[%clk 0:00:06]} 93. Kf5 {[%clk 0:00:04]}  Rg2 {[%clk 0:00:05]} 94. Ra8 {[%clk 0:00:04]}  Kh7 {[%clk 0:00:04]} 95. Ra7+ {[%clk 0:00:03]}  Kh6 {[%clk 0:00:04]} 96. Ra8 {[%clk 0:00:04]}  Kh7 {[%clk 0:00:04]} 97. Kf6 {[%clk 0:00:04]}  Rg4 {[%clk 0:00:05]} 98. f5 {[%clk 0:00:04]}  Rg1 {[%clk 0:00:05]} 99. Ra7+ {[%clk 0:00:04]}  Kh6 {[%clk 0:00:05]} 100. Kf7 {[%clk 0:00:04]}  Rg7+ {[%clk 0:00:04]} 101. Ke6 {[%clk 0:00:02]}  Rxa7 {[%clk 0:00:05]} 102. f6 {[%clk 0:00:03]}  Ra6+ {[%clk 0:00:04]} 103. Ke7 {[%clk 0:00:04]}  Ra7+ {[%clk 0:00:05]} 104. Ke6 {[%clk 0:00:04]}  Kh7 {[%clk 0:00:05]} 105. f7 {[%clk 0:00:02]}  Kg7 {[%clk 0:00:05]} 106. h6+ {[%clk 0:00:03]}  Kf8 {[%clk 0:00:04]} 107. h7 {[%clk 0:00:03]}  Ra6+ {[%clk 0:00:04]} 108. Ke5 {[%clk 0:00:04]}  Rh6 {[%clk 0:00:04]} 109. Kf5 {[%clk 0:00:03]}  Rxh7 {[%clk 0:00:05]} 110. Kg6 {[%clk 0:00:04]}  Rxf7 {[%clk 0:00:05]} 0-1


[Site "https://www.chess.com"]

[Event "Titled Tuesday Blitz April 12 Early 2022"]
[White "Martinez Alcantara, Jose Eduardo"]
[Black "Molina, Roberto Junio Brito"]
[WhiteFideId "3805662"]
[BlackFideId "2109450"]
[WhiteElo "2690"]
[BlackElo "2432"]
[Result "1-0"]
[Round "06"]
[TimeControl "180+1"]
[Date "2022.04.12"]
[WhiteClock "0:00:18"]
[BlackClock "0:00:04"]

1. e4 {[%clk 0:03:00]}  c6 {[%clk 0:02:59]} 2. d4 {[%clk 0:03:01]}  d5 {[%clk 0:02:58]} 3. e5 {[%clk 0:03:02]}  Bf5 {[%clk 0:02:57]} 4. h4 {[%clk 0:03:02]}  Qb6 {[%clk 0:02:57]} 5. Nc3 {[%clk 0:03:02]}  h6 {[%clk 0:02:55]} 6. h5 {[%clk 0:02:51]}  e6 {[%clk 0:02:53]} 7. Nf3 {[%clk 0:02:44]}  Nd7 {[%clk 0:02:43]} 8. Bd3 {[%clk 0:02:44]}  Ne7 {[%clk 0:02:42]} 9. O-O {[%clk 0:02:41]}  Bg4 {[%clk 0:02:40]} 10. Be2 {[%clk 0:02:36]}  Bxh5 {[%clk 0:02:40]} 11. Ne1 {[%clk 0:02:36]}  Bxe2 {[%clk 0:02:38]} 12. Nxe2 {[%clk 0:02:37]}  c5 {[%clk 0:02:32]} 13. c3 {[%clk 0:02:36]}  Nc6 {[%clk 0:02:32]} 14. Nf3 {[%clk 0:02:37]}  Be7 {[%clk 0:02:31]} 15. Nf4 {[%clk 0:02:37]}  g5 {[%clk 0:02:27]} 16. Ne2 {[%clk 0:02:36]}  g4 {[%clk 0:02:22]} 17. Ne1 {[%clk 0:02:36]}  cxd4 {[%clk 0:02:19]} 18. cxd4 {[%clk 0:02:36]}  O-O-O {[%clk 0:02:17]} 19. a3 {[%clk 0:02:30]}  Kb8 {[%clk 0:02:16]} 20. b4 {[%clk 0:02:30]}  h5 {[%clk 0:02:16]} 21. Qd3 {[%clk 0:02:28]}  h4 {[%clk 0:02:09]} 22. Be3 {[%clk 0:02:28]}  h3 {[%clk 0:01:56]} 23. g3 {[%clk 0:02:24]}  Rc8 {[%clk 0:01:43]} 24. Kh2 {[%clk 0:02:19]}  Bf8 {[%clk 0:01:37]} 25. f3 {[%clk 0:02:17]}  gxf3 {[%clk 0:01:36]} 26. Nxf3 {[%clk 0:02:17]}  Ne7 {[%clk 0:01:27]} 27. Rac1 {[%clk 0:02:16]}  Rxc1 {[%clk 0:01:24]} 28. Rxc1 {[%clk 0:02:17]}  Nf5 {[%clk 0:01:24]} 29. Bg5 {[%clk 0:02:15]}  Be7 {[%clk 0:01:19]} 30. g4 {[%clk 0:02:09]}  Bxg5 {[%clk 0:01:13]} 31. Nxg5 {[%clk 0:02:10]}  Nh6 {[%clk 0:01:11]} 32. Rg1 {[%clk 0:01:48]}  Qd8 {[%clk 0:01:02]} 33. Nf3 {[%clk 0:01:46]}  Qe7 {[%clk 0:00:59]} 34. Nf4 {[%clk 0:01:39]}  a6 {[%clk 0:00:55]} 35. Rg3 {[%clk 0:01:33]}  Nb6 {[%clk 0:00:49]} 36. Nxh3 {[%clk 0:01:29]}  Nc4 {[%clk 0:00:46]} 37. Kg2 {[%clk 0:01:28]}  Rg8 {[%clk 0:00:38]} 38. Nf2 {[%clk 0:01:27]}  Rg7 {[%clk 0:00:31]} 39. Nd2 {[%clk 0:01:25]}  Nxd2 {[%clk 0:00:25]} 40. Qxd2 {[%clk 0:01:26]}  Ng8 {[%clk 0:00:14]} 41. Qf4 {[%clk 0:01:23]}  Ka7 {[%clk 0:00:12]} 42. Rf3 {[%clk 0:01:24]}  Qc7 {[%clk 0:00:10]} 43. Qd2 {[%clk 0:01:17]}  Ne7 {[%clk 0:00:10]} 44. Qc3 {[%clk 0:01:17]}  Qd7 {[%clk 0:00:09]} 45. Rh3 {[%clk 0:01:16]}  Ng6 {[%clk 0:00:08]} 46. Rd3 {[%clk 0:01:13]}  Qb5 {[%clk 0:00:07]} 47. Kg3 {[%clk 0:01:10]}  Rh7 {[%clk 0:00:06]} 48. Qc5+ {[%clk 0:01:07]}  Qxc5 {[%clk 0:00:05]} 49. bxc5 {[%clk 0:01:08]}  b6 {[%clk 0:00:05]} 50. Rc3 {[%clk 0:01:05]}  bxc5 {[%clk 0:00:04]} 51. Rxc5 {[%clk 0:01:06]}  Kb6 {[%clk 0:00:05]} 52. Nh3 {[%clk 0:01:07]}  Rg7 {[%clk 0:00:03]} 53. Rc3 {[%clk 0:01:04]}  Ne7 {[%clk 0:00:04]} 54. Kf3 {[%clk 0:00:57]}  Nc6 {[%clk 0:00:03]} 55. Rd3 {[%clk 0:00:55]}  Kb5 {[%clk 0:00:04]} 56. Nf2 {[%clk 0:00:53]}  Kc4 {[%clk 0:00:04]} 57. Ke3 {[%clk 0:00:53]}  Rh7 {[%clk 0:00:03]} 58. Rd1 {[%clk 0:00:54]}  Rh2 {[%clk 0:00:02]} 59. Rc1+ {[%clk 0:00:54]}  Kb5 {[%clk 0:00:03]} 60. Rd1 {[%clk 0:00:50]}  Na5 {[%clk 0:00:03]} 61. Kf3 {[%clk 0:00:50]}  Nc4 {[%clk 0:00:03]} 62. Kg3 {[%clk 0:00:51]}  Rh8 {[%clk 0:00:03]} 63. Rb1+ {[%clk 0:00:49]}  Kc6 {[%clk 0:00:02]} 64. a4 {[%clk 0:00:49]}  Nd2 {[%clk 0:00:02]} 65. Rc1+ {[%clk 0:00:48]}  Nc4 {[%clk 0:00:03]} 66. Nh3 {[%clk 0:00:45]}  Rb8 {[%clk 0:00:03]} 67. Ng5 {[%clk 0:00:42]}  Rb3+ {[%clk 0:00:03]} 68. Kh4 {[%clk 0:00:42]}  Rb7 {[%clk 0:00:03]} 69. Rf1 {[%clk 0:00:41]}  Nb2 {[%clk 0:00:04]} 70. Nxf7 {[%clk 0:00:39]}  Rd7 {[%clk 0:00:03]} 71. Ng5 {[%clk 0:00:39]}  Re7 {[%clk 0:00:03]} 72. Rf6 {[%clk 0:00:39]}  Kd7 {[%clk 0:00:04]} 73. a5 {[%clk 0:00:36]}  Nc4 {[%clk 0:00:02]} 74. Rf8 {[%clk 0:00:36]}  Nxa5 {[%clk 0:00:03]} 75. Ra8 {[%clk 0:00:37]}  Nc6 {[%clk 0:00:03]} 76. Nf3 {[%clk 0:00:34]}  a5 {[%clk 0:00:04]} 77. g5 {[%clk 0:00:35]}  Rf7 {[%clk 0:00:04]} 78. Kg4 {[%clk 0:00:31]}  Kc7 {[%clk 0:00:05]} 79. Rg8 {[%clk 0:00:26]}  Kb6 {[%clk 0:00:05]} 80. g6 {[%clk 0:00:26]}  Ra7 {[%clk 0:00:03]} 81. g7 {[%clk 0:00:21]}  Rb7 {[%clk 0:00:04]} 82. Kg5 {[%clk 0:00:19]}  a4 {[%clk 0:00:04]} 83. Kf6 {[%clk 0:00:20]}  a3 {[%clk 0:00:04]} 84. Ra8 {[%clk 0:00:20]}  Rxg7 {[%clk 0:00:04]} 85. Kxg7 {[%clk 0:00:19]}  Na5 {[%clk 0:00:04]} 86. Rb8+ {[%clk 0:00:19]}  Nb7 {[%clk 0:00:04]} 87. Rc8 {[%clk 0:00:18]}  a2 {[%clk 0:00:03]} 88. Rc1 {[%clk 0:00:18]}  Na5 {[%clk 0:00:04]} 89. Ra1 {[%clk 0:00:18]} 1-0


[Site "https://www.chess.com"]

[Event "Titled Tuesday Blitz April 12 Early 2022"]
[White "Mikhailov, Viacheslav"]
[Black "Gharibyan, Mamikon"]
[WhiteFideId "4187369"]
[BlackFideId "13308300"]
[WhiteElo "2381"]
[BlackElo "2254"]
[Result "1-0"]
[Round "06"]
[TimeControl "180+1"]
[Date "2022.04.12"]
[WhiteClock "0:00:09"]
[BlackClock "0:00:03"]

1. Nf3 {[%clk 0:02:47]}  d5 {[%clk 0:02:59]} 2. g3 {[%clk 0:02:47]}  g6 {[%clk 0:02:57]} 3. Bg2 {[%clk 0:02:47]}  Bg7 {[%clk 0:02:58]} 4. c4 {[%clk 0:02:48]}  dxc4 {[%clk 0:02:57]} 5. Na3 {[%clk 0:02:48]}  Nc6 {[%clk 0:02:57]} 6. Nxc4 {[%clk 0:02:47]}  e5 {[%clk 0:02:57]} 7. O-O {[%clk 0:02:46]}  Nge7 {[%clk 0:02:53]} 8. d3 {[%clk 0:02:46]}  O-O {[%clk 0:02:52]} 9. Be3 {[%clk 0:02:41]}  Nf5 {[%clk 0:02:48]} 10. Bc5 {[%clk 0:02:40]}  Re8 {[%clk 0:02:47]} 11. Nfd2 {[%clk 0:02:34]}  Ncd4 {[%clk 0:02:33]} 12. Ba3 {[%clk 0:02:07]}  Nb5 {[%clk 0:02:21]} 13. Bc5 {[%clk 0:01:55]}  Nfd4 {[%clk 0:02:13]} 14. a4 {[%clk 0:01:49]}  Nd6 {[%clk 0:02:11]} 15. Nxd6 {[%clk 0:01:42]}  cxd6 {[%clk 0:02:11]} 16. Bxd4 {[%clk 0:01:43]}  exd4 {[%clk 0:02:12]} 17. Re1 {[%clk 0:01:41]}  Be6 {[%clk 0:02:04]} 18. a5 {[%clk 0:01:38]}  Rb8 {[%clk 0:02:00]} 19. Qa4 {[%clk 0:01:35]}  Bg4 {[%clk 0:01:42]} 20. Bf3 {[%clk 0:01:32]}  Bf5 {[%clk 0:01:32]} 21. Rec1 {[%clk 0:01:28]}  h5 {[%clk 0:01:23]} 22. Rc2 {[%clk 0:01:13]}  h4 {[%clk 0:01:21]} 23. a6 {[%clk 0:01:06]}  bxa6 {[%clk 0:01:04]} 24. Qxa6 {[%clk 0:01:04]}  Re7 {[%clk 0:00:58]} 25. Rac1 {[%clk 0:01:03]}  Bh6 {[%clk 0:00:41]} 26. Qa4 {[%clk 0:01:00]}  Qb6 {[%clk 0:00:32]} 27. Nc4 {[%clk 0:01:00]}  Qc5 {[%clk 0:00:23]} 28. Ne3 {[%clk 0:00:54]}  Bd7 {[%clk 0:00:05]} 29. Qa1 {[%clk 0:00:26]}  Qe5 {[%clk 0:00:05]} 30. Nd5 {[%clk 0:00:21]}  Ree8 {[%clk 0:00:03]} 31. Rb1 {[%clk 0:00:12]}  Bf5 {[%clk 0:00:03]} 32. Qxa7 {[%clk 0:00:11]}  hxg3 {[%clk 0:00:03]} 33. hxg3 {[%clk 0:00:11]}  Be6 {[%clk 0:00:03]} 34. Nc7 {[%clk 0:00:09]}  Rec8 {[%clk 0:00:03]} 35. Nxe6 {[%clk 0:00:09]} 1-0


[Site "https://www.chess.com"]